[Event "Early-Titled-Tuesday-Blitz-May-28-2024"]
[Site "Chess.com"]
[Date "2024.05.28"]
[Round "5"]
[White "simaopdias"]
[Black "maximnovik"]
[Result "0-1"]
[WhiteElo "2250"]
[BlackElo "2534"]
[TimeControl "180+1"]
[EndTime "8:55:23 PDT"]
[Termination "maximnovik won by resignation"]

1. e4 {[%clk 0:02:59.8]} 1... c6 {[%clk 0:02:57.5]} 2. d4 {[%clk 0:02:59.7]}
2... d5 {[%clk 0:02:58]} 3. exd5 {[%clk 0:03:00.6]} 3... cxd5 {[%clk 0:02:58.4]}
4. c4 {[%clk 0:03:01.5]} 4... Nf6 {[%clk 0:02:58.3]} 5. Nc3 {[%clk 0:03:01.9]}
5... g6 {[%clk 0:02:58.8]} 6. cxd5 {[%clk 0:03:00.1]} 6... Nxd5 {[%clk
0:02:56.9]} 7. Bc4 {[%clk 0:03:00.3]} 7... Nxc3 {[%clk 0:02:56.9]} 8. Qf3 {[%clk
0:03:00.3]} 8... e6 {[%clk 0:02:55.3]} 9. bxc3 {[%clk 0:02:59.8]} 9... Bg7
{[%clk 0:02:54.1]} 10. Ne2 {[%clk 0:02:59.6]} 10... O-O {[%clk 0:02:53.9]} 11.
O-O {[%clk 0:02:57]} 11... Nc6 {[%clk 0:02:54]} 12. Rd1 {[%clk 0:02:51.1]} 12...
Bd7 {[%clk 0:02:45.8]} 13. Bf4 {[%clk 0:02:42.6]} 13... Qe7 {[%clk 0:02:24.9]}
14. a4 {[%clk 0:02:39.5]} 14... Rac8 {[%clk 0:02:24.2]} 15. Rab1 {[%clk
0:02:38]} 15... Na5 {[%clk 0:02:20.6]} 16. Bb5 {[%clk 0:02:30.8]} 16... Bc6
{[%clk 0:02:18.8]} 17. Qg3 {[%clk 0:02:30]} 17... Rfd8 {[%clk 0:02:12.9]} 18. h4
{[%clk 0:02:24.9]} 18... Bxb5 {[%clk 0:02:01]} 19. Rxb5 {[%clk 0:02:15.5]} 19...
Nc4 {[%clk 0:01:50.4]} 20. h5 {[%clk 0:02:10.7]} 20... b6 {[%clk 0:01:49.4]} 21.
hxg6 {[%clk 0:02:09.4]} 21... hxg6 {[%clk 0:01:49]} 22. Re1 {[%clk 0:01:53.3]}
22... Rd5 {[%clk 0:01:45.5]} 23. Bc1 {[%clk 0:01:24.3]} 23... Qd7 {[%clk
0:01:43.7]} 24. Rb4 {[%clk 0:01:19.5]} 24... a5 {[%clk 0:01:42.8]} 25. Rb1
{[%clk 0:01:16.5]} 25... Qxa4 {[%clk 0:01:42.7]} 26. Nf4 {[%clk 0:01:12.5]}
26... Rf5 {[%clk 0:01:38.3]} 27. Nd3 {[%clk 0:01:07.3]} 27... Qc2 {[%clk
0:01:36.8]} 28. Bf4 {[%clk 0:00:20.4]} 28... Qxc3 {[%clk 0:01:36.5]} 29. Rec1
{[%clk 0:00:19.5]} 29... Qxd4 {[%clk 0:01:36]} 30. Be3 {[%clk 0:00:15.3]} 30...
Qd7 {[%clk 0:01:29.5]} 31. Nf4 {[%clk 0:00:12.2]} 31... Be5 {[%clk 0:01:24.3]}
32. Qg4 {[%clk 0:00:10.7]} 32... Nxe3 {[%clk 0:01:23.2]} 33. fxe3 {[%clk
0:00:11.6]} 33... Rxc1+ {[%clk 0:01:22.5]} 34. Rxc1 {[%clk 0:00:11.9]} 34...
Bxf4 {[%clk 0:01:22.7]} 35. exf4 {[%clk 0:00:11.9]} 35... Qd4+ {[%clk
0:01:23.3]} 36. Kh1 {[%clk 0:00:10.5]} 36... Rh5+ {[%clk 0:01:23.2]} 0-1

[Event "Early-Titled-Tuesday-Blitz-May-28-2024"]
[Site "Chess.com"]
[Date "2024.05.28"]
[Round "5"]
[White "Lily_Schirmbeck"]
[Black "Fore_Man"]
[Result "1/2-1/2"]
[WhiteElo "1726"]
[BlackElo "2243"]
[TimeControl "180+1"]
[EndTime "8:55:24 PDT"]
[Termination "Game drawn by repetition"]

1. d4 {[%clk 0:02:56.1]} 1... d5 {[%clk 0:02:59.7]} 2. Nf3 {[%clk 0:02:52.7]}
2... Nf6 {[%clk 0:02:58.4]} 3. g3 {[%clk 0:02:51.9]} 3... c6 {[%clk 0:02:58]} 4.
Bg2 {[%clk 0:02:50]} 4... Bg4 {[%clk 0:02:58]} 5. O-O {[%clk 0:02:49]} 5... e6
{[%clk 0:02:58.3]} 6. Ne5 {[%clk 0:02:44.3]} 6... Bh5 {[%clk 0:02:56.6]} 7. c4
{[%clk 0:02:40.1]} 7... Nbd7 {[%clk 0:02:55.1]} 8. cxd5 {[%clk 0:02:37.1]} 8...
exd5 {[%clk 0:02:53.7]} 9. Nxd7 {[%clk 0:02:34.6]} 9... Qxd7 {[%clk 0:02:51.4]}
10. Nc3 {[%clk 0:02:34.8]} 10... Bd6 {[%clk 0:02:48.2]} 11. Qb3 {[%clk
0:02:26.8]} 11... O-O {[%clk 0:02:47.6]} 12. Bg5 {[%clk 0:02:22.2]} 12... Be7
{[%clk 0:02:39.9]} 13. Na4 {[%clk 0:02:13.4]} 13... Rab8 {[%clk 0:02:28.5]} 14.
Rfe1 {[%clk 0:01:54.7]} 14... h6 {[%clk 0:02:18]} 15. Bf4 {[%clk 0:01:43.8]}
15... Bd6 {[%clk 0:02:16.8]} 16. Nc5 {[%clk 0:01:40.5]} 16... Qc7 {[%clk
0:02:04.1]} 17. Bxd6 {[%clk 0:01:36.2]} 17... Qxd6 {[%clk 0:02:05]} 18. e3
{[%clk 0:01:32.1]} 18... Nd7 {[%clk 0:01:44.7]} 19. Nd3 {[%clk 0:01:30.1]} 19...
Bg6 {[%clk 0:01:42.8]} 20. Nf4 {[%clk 0:01:26.4]} 20... Bh7 {[%clk 0:01:42.7]}
21. Rac1 {[%clk 0:01:24.5]} 21... Rfe8 {[%clk 0:01:39.9]} 22. Qc3 {[%clk
0:01:14.1]} 22... Nb6 {[%clk 0:01:25.6]} 23. Bf1 {[%clk 0:00:58.1]} 23... Be4
{[%clk 0:01:16.1]} 24. b4 {[%clk 0:00:52.7]} 24... Na4 {[%clk 0:00:38.8]} 25.
Qb3 {[%clk 0:00:48.1]} 25... b5 {[%clk 0:00:39.1]} 26. Bd3 {[%clk 0:00:40.8]}
26... Bf3 {[%clk 0:00:34.1]} 27. Be2 {[%clk 0:00:37.1]} 27... Be4 {[%clk
0:00:33.3]} 28. Bd3 {[%clk 0:00:37]} 28... Bf3 {[%clk 0:00:32.7]} 29. Be2 {[%clk
0:00:37.1]} 29... Be4 {[%clk 0:00:31]} 30. Bd3 {[%clk 0:00:37.1]} 1/2-1/2

[Event "Early-Titled-Tuesday-Blitz-May-28-2024"]
[Site "Chess.com"]
[Date "2024.05.28"]
[Round "5"]
[White "Veleamater"]
[Black "Kostya0705"]
[Result "0-1"]
[WhiteElo "2433"]
[BlackElo "2591"]
[TimeControl "180+1"]
[EndTime "8:55:26 PDT"]
[Termination "Kostya0705 won by resignation"]

1. g3 {[%clk 0:03:00.9]} 1... Nf6 {[%clk 0:02:12.5]} 2. Bg2 {[%clk 0:02:57.7]}
2... e6 {[%clk 0:02:11.1]} 3. d3 {[%clk 0:02:52.8]} 3... Be7 {[%clk 0:02:12]} 4.
Nc3 {[%clk 0:02:48.9]} 4... O-O {[%clk 0:02:12.9]} 5. e4 {[%clk 0:02:47.9]} 5...
d5 {[%clk 0:02:13.8]} 6. e5 {[%clk 0:02:47.1]} 6... Nfd7 {[%clk 0:02:12.6]} 7.
Nf3 {[%clk 0:02:42.9]} 7... c5 {[%clk 0:02:13.5]} 8. h4 {[%clk 0:02:42.1]} 8...
Nc6 {[%clk 0:02:14.4]} 9. Bf4 {[%clk 0:02:40.6]} 9... h6 {[%clk 0:02:15.3]} 10.
O-O {[%clk 0:02:39.8]} 10... a6 {[%clk 0:02:16.1]} 11. a4 {[%clk 0:02:38.4]}
11... Rb8 {[%clk 0:02:16.3]} 12. Re1 {[%clk 0:02:35.6]} 12... b5 {[%clk
0:02:16.6]} 13. axb5 {[%clk 0:02:34.7]} 13... axb5 {[%clk 0:02:17.5]} 14. Kh2
{[%clk 0:02:34.8]} 14... b4 {[%clk 0:02:17.9]} 15. Ne2 {[%clk 0:02:34.6]} 15...
Qc7 {[%clk 0:02:17.1]} 16. Neg1 {[%clk 0:02:33.4]} 16... Bb7 {[%clk 0:02:14.5]}
17. g4 {[%clk 0:02:32.5]} 17... d4 {[%clk 0:02:14.3]} 18. b3 {[%clk 0:02:30.5]}
18... Nb6 {[%clk 0:02:13.9]} 19. Qd2 {[%clk 0:02:26.5]} 19... Nd5 {[%clk
0:02:14.1]} 20. Bg3 {[%clk 0:02:26.1]} 20... Ra8 {[%clk 0:02:05.4]} 21. g5
{[%clk 0:02:23.8]} 21... hxg5 {[%clk 0:02:03.2]} 22. hxg5 {[%clk 0:02:23.4]}
22... Rxa1 {[%clk 0:01:59.7]} 23. Rxa1 {[%clk 0:02:23.1]} 23... Ra8 {[%clk
0:02:00.6]} 24. Rxa8+ {[%clk 0:02:21.1]} 24... Bxa8 {[%clk 0:02:01.5]} 25. g6
{[%clk 0:02:09.4]} 25... fxg6 {[%clk 0:01:57.3]} 26. Nh3 {[%clk 0:02:05.6]}
26... Nd8 {[%clk 0:01:47.9]} 27. Nf4 {[%clk 0:02:00.5]} 27... Nxf4 {[%clk
0:01:46.7]} 28. Qxf4 {[%clk 0:01:58.5]} 28... Nf7 {[%clk 0:01:47.6]} 29. Bh3
{[%clk 0:01:56]} 29... g5 {[%clk 0:01:45.5]} 30. Qg4 {[%clk 0:01:52.7]} 30...
Qc6 {[%clk 0:01:45.1]} 31. Bg2 {[%clk 0:01:47.7]} 31... Nh6 {[%clk 0:01:45.2]}
32. Qh5 {[%clk 0:01:39.4]} 32... Bb7 {[%clk 0:01:33.2]} 33. Ne1 {[%clk 0:01:06]}
33... Qd7 {[%clk 0:01:28.2]} 34. Bxb7 {[%clk 0:01:03.9]} 34... Qxb7 {[%clk
0:01:29.1]} 35. Qe8+ {[%clk 0:01:03.4]} 35... Kh7 {[%clk 0:01:23.7]} 36. Kh3
{[%clk 0:00:53.9]} 36... Qh1+ {[%clk 0:01:21.5]} 37. Bh2 {[%clk 0:00:52.5]}
37... g4+ {[%clk 0:01:20.8]} 38. Kg3 {[%clk 0:00:51.1]} 38... Qxe1 {[%clk
0:01:15.9]} 39. Qh5 {[%clk 0:00:47.1]} 39... Qe2 {[%clk 0:01:09.4]} 40. Kg2
{[%clk 0:00:44.7]} 40... Qf3+ {[%clk 0:01:07.8]} 41. Kg1 {[%clk 0:00:44.4]}
41... Qf5 {[%clk 0:00:56.3]} 42. Qe8 {[%clk 0:00:41.7]} 42... Bh4 {[%clk
0:00:54.5]} 43. Bg3 {[%clk 0:00:38.9]} 43... Bxg3 {[%clk 0:00:52]} 44. fxg3
{[%clk 0:00:39.1]} 44... Qxe5 {[%clk 0:00:51.9]} 0-1

[Event "Early-Titled-Tuesday-Blitz-May-28-2024"]
[Site "Chess.com"]
[Date "2024.05.28"]
[Round "5"]
[White "frankshar"]
[Black "gpsji27"]
[Result "1-0"]
[WhiteElo "2500"]
[BlackElo "2302"]
[TimeControl "180+1"]
[EndTime "8:55:26 PDT"]
[Termination "frankshar won by resignation"]

1. d4 {[%clk 0:03:00.9]} 1... d5 {[%clk 0:02:59.3]} 2. c4 {[%clk 0:02:58.1]}
2... e6 {[%clk 0:02:58.8]} 3. Nf3 {[%clk 0:02:58.5]} 3... Nf6 {[%clk 0:02:57.3]}
4. g3 {[%clk 0:02:58.7]} 4... Be7 {[%clk 0:02:56.6]} 5. Bg2 {[%clk 0:02:58.5]}
5... O-O {[%clk 0:02:55.9]} 6. O-O {[%clk 0:02:59]} 6... dxc4 {[%clk 0:02:55.6]}
7. Qc2 {[%clk 0:02:58.3]} 7... a6 {[%clk 0:02:55.5]} 8. a4 {[%clk 0:02:57.7]}
8... Bd7 {[%clk 0:02:55.7]} 9. Qxc4 {[%clk 0:02:57.6]} 9... Bc6 {[%clk
0:02:55.7]} 10. Bg5 {[%clk 0:02:57.3]} 10... Bd5 {[%clk 0:02:55.4]} 11. Qc2
{[%clk 0:02:57.6]} 11... Be4 {[%clk 0:02:55.4]} 12. Qc1 {[%clk 0:02:57.9]} 12...
Nc6 {[%clk 0:02:55.8]} 13. Bxf6 {[%clk 0:02:37.5]} 13... Bxf6 {[%clk 0:02:55.4]}
14. e3 {[%clk 0:02:37.7]} 14... Nb4 {[%clk 0:02:11.4]} 15. Nc3 {[%clk
0:02:36.3]} 15... Bc6 {[%clk 0:01:56.5]} 16. Rd1 {[%clk 0:02:31.4]} 16... Qe7
{[%clk 0:01:54.9]} 17. e4 {[%clk 0:02:28.5]} 17... g6 {[%clk 0:01:42.8]} 18. h4
{[%clk 0:02:17.5]} 18... Rfd8 {[%clk 0:01:39.2]} 19. h5 {[%clk 0:02:14]} 19...
Bg7 {[%clk 0:01:29.5]} 20. h6 {[%clk 0:02:03.5]} 20... Bf8 {[%clk 0:01:21.3]}
21. Ne5 {[%clk 0:02:00.1]} 21... f6 {[%clk 0:01:01.9]} 22. Nxc6 {[%clk 0:01:58]}
22... Nxc6 {[%clk 0:01:02.8]} 23. d5 {[%clk 0:01:58.3]} 23... Ne5 {[%clk
0:01:00.7]} 24. Bh3 {[%clk 0:01:54.4]} 24... Nf3+ {[%clk 0:00:55.5]} 25. Kg2
{[%clk 0:01:53.1]} 25... Ng5 {[%clk 0:00:55.3]} 26. Bxe6+ {[%clk 0:01:47.5]}
26... Nxe6 {[%clk 0:00:54.1]} 27. dxe6 {[%clk 0:01:47.7]} 27... Qxe6 {[%clk
0:00:54.5]} 28. Qe3 {[%clk 0:01:43.9]} 28... g5 {[%clk 0:00:36.5]} 29. Nd5
{[%clk 0:01:40.6]} 29... Qf7 {[%clk 0:00:21.4]} 30. Qc3 {[%clk 0:01:37.6]} 30...
Rxd5 {[%clk 0:00:08.3]} 31. Rxd5 {[%clk 0:01:34.3]} 31... Bxh6 {[%clk 0:00:09]}
32. Rad1 {[%clk 0:01:33]} 32... Qe6 {[%clk 0:00:06.2]} 33. Rd8+ {[%clk
0:01:30.4]} 33... Rxd8 {[%clk 0:00:05.4]} 34. Rxd8+ {[%clk 0:01:31.3]} 34... Bf8
{[%clk 0:00:06]} 35. Qc5 {[%clk 0:01:17.8]} 35... Qxe4+ {[%clk 0:00:05]} 36. Kh2
{[%clk 0:01:17.7]} 1-0

[Event "Early-Titled-Tuesday-Blitz-May-28-2024"]
[Site "Chess.com"]
[Date "2024.05.28"]
[Round "5"]
[White "urano56"]
[Black "ChempionBg"]
[Result "1-0"]
[WhiteElo "2421"]
[BlackElo "2252"]
[TimeControl "180+1"]
[EndTime "8:55:27 PDT"]
[Termination "urano56 won on time"]

1. e4 {[%clk 0:03:00.9]} 1... c5 {[%clk 0:02:56.3]} 2. Nf3 {[%clk 0:03:00.8]}
2... d6 {[%clk 0:02:56.9]} 3. d4 {[%clk 0:03:01]} 3... cxd4 {[%clk 0:02:57.4]}
4. Nxd4 {[%clk 0:03:01.5]} 4... Nf6 {[%clk 0:02:57.7]} 5. Nc3 {[%clk 0:03:01.7]}
5... a6 {[%clk 0:02:58.1]} 6. Rg1 {[%clk 0:02:59.3]} 6... g6 {[%clk 0:02:54]} 7.
g4 {[%clk 0:02:58.2]} 7... Bg7 {[%clk 0:02:54.5]} 8. g5 {[%clk 0:02:56.8]} 8...
Nfd7 {[%clk 0:02:51.9]} 9. Be3 {[%clk 0:02:56]} 9... O-O {[%clk 0:02:51]} 10. h4
{[%clk 0:02:54.1]} 10... Nc6 {[%clk 0:02:51.4]} 11. h5 {[%clk 0:02:52.8]} 11...
Nxd4 {[%clk 0:02:42.4]} 12. Bxd4 {[%clk 0:02:52.8]} 12... Bxd4 {[%clk
0:02:40.6]} 13. Qxd4 {[%clk 0:02:53.7]} 13... Ne5 {[%clk 0:02:40.8]} 14. Be2
{[%clk 0:02:50.9]} 14... Nc6 {[%clk 0:02:32.8]} 15. Qe3 {[%clk 0:02:39.4]} 15...
Qa5 {[%clk 0:02:24.8]} 16. O-O-O {[%clk 0:02:37.5]} 16... Be6 {[%clk 0:02:14.3]}
17. Kb1 {[%clk 0:02:36.8]} 17... b5 {[%clk 0:02:08.1]} 18. f4 {[%clk 0:02:34.5]}
18... Rac8 {[%clk 0:02:00.5]} 19. f5 {[%clk 0:02:31.9]} 19... Nb4 {[%clk
0:01:58.7]} 20. fxe6 {[%clk 0:02:19.4]} 20... Rxc3 {[%clk 0:01:56.7]} 21. exf7+
{[%clk 0:02:09.4]} 21... Rxf7 {[%clk 0:01:53.5]} 22. Qxc3 {[%clk 0:02:09.3]}
22... Qxa2+ {[%clk 0:01:50.1]} 23. Kc1 {[%clk 0:02:09.4]} 23... Qa4 {[%clk
0:01:42.7]} 24. Qc8+ {[%clk 0:02:00.5]} 24... Rf8 {[%clk 0:01:40.5]} 25. Qe6+
{[%clk 0:02:01]} 25... Kg7 {[%clk 0:01:27.2]} 26. Qb3 {[%clk 0:02:00.1]} 26...
Qa5 {[%clk 0:01:01.9]} 27. h6+ {[%clk 0:01:55.9]} 27... Kh8 {[%clk 0:01:00.2]}
28. Rxd6 {[%clk 0:01:47.7]} 28... Na2+ {[%clk 0:00:24.6]} 29. Kb1 {[%clk
0:01:47.8]} 29... exd6 {[%clk 0:00:22.9]} 30. Qxa2 {[%clk 0:01:29.5]} 30... Qd2
{[%clk 0:00:15.9]} 31. Qd5 {[%clk 0:01:26.3]} 31... Qe3 {[%clk 0:00:13.6]} 32.
Rd1 {[%clk 0:01:24.4]} 32... Rc8 {[%clk 0:00:06.8]} 33. Qxd6 {[%clk 0:01:10.8]}
33... Qxe2 {[%clk 0:00:03.3]} 34. Qf6+ {[%clk 0:01:09.3]} 1-0

[Event "Early-Titled-Tuesday-Blitz-May-28-2024"]
[Site "Chess.com"]
[Date "2024.05.28"]
[Round "5"]
[White "Adar_07"]
[Black "ValeriyGrinev"]
[Result "1-0"]
[WhiteElo "2773"]
[BlackElo "2584"]
[TimeControl "180+1"]
[EndTime "8:55:29 PDT"]
[Termination "Adar_07 won by resignation"]

1. e4 {[%clk 0:03:00.9]} 1... c6 {[%clk 0:03:00]} 2. d4 {[%clk 0:03:00.9]} 2...
d5 {[%clk 0:03:00.9]} 3. Nc3 {[%clk 0:03:01.2]} 3... dxe4 {[%clk 0:03:00.1]} 4.
Nxe4 {[%clk 0:03:02.1]} 4... Bf5 {[%clk 0:03:00.1]} 5. Ng3 {[%clk 0:03:01.7]}
5... Bg6 {[%clk 0:03:00.1]} 6. Nh3 {[%clk 0:02:59.9]} 6... e6 {[%clk 0:02:54]}
7. Nf4 {[%clk 0:02:58.9]} 7... Bd6 {[%clk 0:02:53.2]} 8. c3 {[%clk 0:02:43.7]}
8... Qc7 {[%clk 0:02:49.3]} 9. Nh3 {[%clk 0:02:43.9]} 9... Nf6 {[%clk
0:02:44.1]} 10. Ng5 {[%clk 0:02:39.9]} 10... Nbd7 {[%clk 0:02:40]} 11. Bc4
{[%clk 0:02:39.3]} 11... O-O-O {[%clk 0:02:35.6]} 12. Be3 {[%clk 0:02:38.1]}
12... Nb6 {[%clk 0:02:31.5]} 13. Bb3 {[%clk 0:02:34.9]} 13... e5 {[%clk
0:02:27.2]} 14. dxe5 {[%clk 0:02:28.5]} 14... Bxe5 {[%clk 0:02:23.9]} 15. Qe2
{[%clk 0:02:27.5]} 15... Bd3 {[%clk 0:02:18.4]} 16. Qf3 {[%clk 0:02:24.3]} 16...
Nc4 {[%clk 0:02:06.8]} 17. O-O-O {[%clk 0:02:19.7]} 17... Nxe3 {[%clk
0:02:00.8]} 18. fxe3 {[%clk 0:02:20.6]} 18... Bg6 {[%clk 0:01:52.2]} 19. Nxf7
{[%clk 0:02:12.1]} 19... Bxf7 {[%clk 0:01:40.5]} 20. Bxf7 {[%clk 0:02:13]} 20...
Bxg3 {[%clk 0:01:03.7]} 21. Be6+ {[%clk 0:02:11.5]} 21... Kb8 {[%clk 0:01:03.7]}
22. hxg3 {[%clk 0:02:12.1]} 22... Rhe8 {[%clk 0:00:57.2]} 23. Rxd8+ {[%clk
0:02:08.3]} 23... Qxd8 {[%clk 0:00:54.7]} 24. Bf5 {[%clk 0:02:05]} 24... Qe7
{[%clk 0:00:50.9]} 25. g4 {[%clk 0:01:47.4]} 25... Qxe3+ {[%clk 0:00:37.5]} 26.
Qxe3 {[%clk 0:01:47.3]} 26... Rxe3 {[%clk 0:00:38.4]} 27. g5 {[%clk 0:01:48.2]}
27... Ne4 {[%clk 0:00:28.1]} 28. Rxh7 {[%clk 0:01:45.2]} 28... Ng3 {[%clk
0:00:14.5]} 29. Bg4 {[%clk 0:01:39.8]} 29... Re7 {[%clk 0:00:13.1]} 30. g6
{[%clk 0:01:34.7]} 30... Ne4 {[%clk 0:00:11.9]} 31. Bd1 {[%clk 0:01:17.8]} 31...
Nf6 {[%clk 0:00:11.5]} 32. Bb3 {[%clk 0:01:16.5]} 32... Re2 {[%clk 0:00:07.5]}
33. Rxg7 {[%clk 0:01:15.4]} 33... Rxg2 {[%clk 0:00:07.5]} 34. Bc2 {[%clk
0:01:10.7]} 34... Nd5 {[%clk 0:00:04.8]} 35. Be4 {[%clk 0:01:07.2]} 35... Ne3
{[%clk 0:00:02.6]} 36. Bxg2 {[%clk 0:01:06.7]} 1-0

[Event "Early-Titled-Tuesday-Blitz-May-28-2024"]
[Site "Chess.com"]
[Date "2024.05.28"]
[Round "5"]
[White "penguingm1"]
[Black "Alphafischer2019"]
[Result "0-1"]
[WhiteElo "2954"]
[BlackElo "2697"]
[TimeControl "180+1"]
[EndTime "8:55:31 PDT"]
[Termination "Alphafischer2019 won by resignation"]

1. d4 {[%clk 0:02:52.2]} 1... Nf6 {[%clk 0:02:59.6]} 2. c4 {[%clk 0:02:52.2]}
2... b6 {[%clk 0:03:00.2]} 3. f3 {[%clk 0:02:52]} 3... Nc6 {[%clk 0:03:00.3]} 4.
d5 {[%clk 0:02:41.5]} 4... Ne5 {[%clk 0:02:59.8]} 5. g4 {[%clk 0:02:23]} 5... h6
{[%clk 0:02:53.6]} 6. f4 {[%clk 0:01:53.3]} 6... Ng6 {[%clk 0:02:42.2]} 7. h3
{[%clk 0:01:27.7]} 7... e6 {[%clk 0:02:42.2]} 8. Nc3 {[%clk 0:01:25.8]} 8... Bd6
{[%clk 0:02:05]} 9. e3 {[%clk 0:01:18.8]} 9... O-O {[%clk 0:02:01.3]} 10. h4
{[%clk 0:01:04.4]} 10... Re8 {[%clk 0:01:54.3]} 11. h5 {[%clk 0:00:58.2]} 11...
Nf8 {[%clk 0:01:36]} 12. Bg2 {[%clk 0:00:37.6]} 12... Bb7 {[%clk 0:01:29.4]} 13.
Kf2 {[%clk 0:00:31.7]} 13... exd5 {[%clk 0:01:25.9]} 14. cxd5 {[%clk 0:00:31.8]}
14... Bb4 {[%clk 0:01:13.7]} 15. Bf3 {[%clk 0:00:22.7]} 15... c6 {[%clk
0:01:11]} 16. g5 {[%clk 0:00:17.1]} 16... Bxc3 {[%clk 0:01:10.6]} 17. bxc3
{[%clk 0:00:16.4]} 17... hxg5 {[%clk 0:01:06]} 18. fxg5 {[%clk 0:00:16.6]} 18...
Ne4+ {[%clk 0:01:06.6]} 19. Bxe4 {[%clk 0:00:15.1]} 19... Rxe4 {[%clk
0:01:07.5]} 20. Nh3 {[%clk 0:00:10.6]} 20... cxd5 {[%clk 0:01:05.1]} 21. Rg1
{[%clk 0:00:10.3]} 21... Ne6 {[%clk 0:00:58.5]} 22. Bd2 {[%clk 0:00:09.5]} 22...
d4 {[%clk 0:00:58.5]} 23. cxd4 {[%clk 0:00:09.2]} 23... Rh4 {[%clk 0:00:54.9]}
24. Kg3 {[%clk 0:00:06.2]} 24... Rxh3+ {[%clk 0:00:55.2]} 25. Kxh3 {[%clk
0:00:06]} 25... Nxg5+ {[%clk 0:00:55.9]} 26. Kg4 {[%clk 0:00:02.3]} 26... Nf3
{[%clk 0:00:53.8]} 27. Kf4 {[%clk 0:00:01.5]} 27... Qf6+ {[%clk 0:00:52.2]} 28.
Kg3 {[%clk 0:00:01.9]} 28... Qh4+ {[%clk 0:00:52]} 29. Kg2 {[%clk 0:00:02.6]}
29... Qh2+ {[%clk 0:00:50.2]} 30. Kf1 {[%clk 0:00:03.1]} 30... Nxd2+ {[%clk
0:00:50.7]} 0-1

[Event "Early-Titled-Tuesday-Blitz-May-28-2024"]
[Site "Chess.com"]
[Date "2024.05.28"]
[Round "5"]
[White "monomita"]
[Black "Grebnev_A"]
[Result "1-0"]
[WhiteElo "2742"]
[BlackElo "2549"]
[TimeControl "180+1"]
[EndTime "8:55:33 PDT"]
[Termination "monomita won by resignation"]

1. Nf3 {[%clk 0:03:00.9]} 1... c5 {[%clk 0:02:57.7]} 2. e3 {[%clk 0:03:00.2]}
2... Nf6 {[%clk 0:02:57.5]} 3. b3 {[%clk 0:03:00.3]} 3... g6 {[%clk 0:02:56.9]}
4. Bb2 {[%clk 0:03:00.7]} 4... Bg7 {[%clk 0:02:57.5]} 5. c4 {[%clk 0:02:59.3]}
5... O-O {[%clk 0:02:56.1]} 6. Nc3 {[%clk 0:02:59.8]} 6... d5 {[%clk 0:02:54.8]}
7. Nxd5 {[%clk 0:03:00.2]} 7... Nxd5 {[%clk 0:02:55.5]} 8. Bxg7 {[%clk
0:03:00.8]} 8... Kxg7 {[%clk 0:02:55.8]} 9. cxd5 {[%clk 0:03:01.2]} 9... Qxd5
{[%clk 0:02:56.7]} 10. d4 {[%clk 0:03:01.4]} 10... cxd4 {[%clk 0:02:55.1]} 11.
Qxd4+ {[%clk 0:02:59.1]} 11... Qxd4 {[%clk 0:02:55.4]} 12. Nxd4 {[%clk 0:03:00]}
12... Bd7 {[%clk 0:02:52.7]} 13. Rc1 {[%clk 0:02:52]} 13... Nc6 {[%clk
0:02:52.5]} 14. Bb5 {[%clk 0:02:51.5]} 14... Nxd4 {[%clk 0:02:50.4]} 15. Bxd7
{[%clk 0:02:51.1]} 15... Rfd8 {[%clk 0:02:50]} 16. Rc7 {[%clk 0:02:34.6]} 16...
Nc2+ {[%clk 0:02:50]} 17. Kd2 {[%clk 0:02:10.7]} 17... Nb4 {[%clk 0:02:50]} 18.
Rxb7 {[%clk 0:02:09.6]} 18... Nxa2 {[%clk 0:02:33.5]} 19. Ra1 {[%clk 0:02:09.3]}
19... Nb4 {[%clk 0:02:33.6]} 20. Rxb4 {[%clk 0:01:54.3]} 20... Rxd7+ {[%clk
0:02:33.4]} 21. Rd4 {[%clk 0:01:54.4]} 21... Rb7 {[%clk 0:02:30.9]} 22. Ra3
{[%clk 0:01:48.3]} 22... Rc8 {[%clk 0:02:28.5]} 23. Rc4 {[%clk 0:01:44.3]} 23...
Rxc4 {[%clk 0:02:24.8]} 24. bxc4 {[%clk 0:01:42.8]} 24... Kf6 {[%clk 0:02:25.7]}
25. Kc3 {[%clk 0:01:40.8]} 25... Ke6 {[%clk 0:02:22.9]} 26. Kd4 {[%clk
0:01:27.3]} 26... Kd6 {[%clk 0:02:19.7]} 27. c5+ {[%clk 0:01:22.4]} 27... Kc7
{[%clk 0:02:17.2]} 28. Kd5 {[%clk 0:01:18.3]} 28... Kb8 {[%clk 0:02:12.5]} 29.
Ra2 {[%clk 0:01:15.8]} 29... h5 {[%clk 0:02:02.2]} 30. h3 {[%clk 0:01:11.2]}
30... h4 {[%clk 0:01:58.2]} 31. Ra4 {[%clk 0:01:08.1]} 31... Rb2 {[%clk
0:01:56.3]} 32. Rxh4 {[%clk 0:01:03.8]} 32... Rxf2 {[%clk 0:01:56.2]} 33. Kc6
{[%clk 0:01:02.8]} 33... Rf6+ {[%clk 0:01:55.6]} 34. Kd7 {[%clk 0:01:02.3]}
34... a5 {[%clk 0:01:36.5]} 35. Ra4 {[%clk 0:00:57.9]} 35... Re6 {[%clk
0:01:35.6]} 36. Rxa5 {[%clk 0:00:51]} 36... Rxe3 {[%clk 0:01:35.8]} 37. Rb5+
{[%clk 0:00:51.4]} 37... Ka7 {[%clk 0:01:35.8]} 38. c6 {[%clk 0:00:45.2]} 38...
f5 {[%clk 0:01:33.5]} 39. c7 {[%clk 0:00:32.1]} 39... Rd3+ {[%clk 0:01:28.7]}
40. Kxe7 {[%clk 0:00:32.4]} 40... Rc3 {[%clk 0:01:27.9]} 41. Kd6 {[%clk
0:00:31.4]} 41... g5 {[%clk 0:01:07.4]} 42. Rb8 {[%clk 0:00:28.3]} 42... Rd3+
{[%clk 0:01:06.6]} 43. Ke5 {[%clk 0:00:28.4]} 1-0